bitfinex/quotes_ETHUSD_20241030
["timestamp","ask_amount","ask_price","bid_price","bid_amount"]
[1730331070151,3.74785,2668.2,2668.0,0.18768018]
[1730331070469,3.74785,2668.2,2667.8,4.51328]
[1730331070763,3.74785,2668.2,2667.9,0.18767798]
[1730331070923,3.74785,2668.2,2668.0,0.18767798]
[1730331071125,3.74785,2668.2,2667.8,4.51328]
[1730331071324,3.74785,2668.2,2667.9,0.18767703]
[1730331071556,3.74785,2668.2,2668.0,0.18767703]
[1730331071763,3.74785,2668.2,2667.8,4.51328]
[1730331071928,3.74785,2668.2,2667.9,0.18767726]
[1730331072128,3.74785,2668.2,2668.0,0.18767726]
[1730331072337,3.74785,2668.2,2667.8,4.51328]
[1730331072544,3.74785,2668.2,2667.9,0.18767785]
[1730331072726,3.74785,2668.2,2668.0,0.18767785]
[1730331072921,3.7479,2668.2,2667.8,0.7649]
[1730331073266,7.49582,2668.2,2667.9,0.18768127]
[1730331073563,3.7479,2668.2,2667.8,0.7649]
[1730331073729,3.7479,2668.2,2667.9,0.18768153]
[1730331073923,3.7479,2668.2,2668.0,0.18767791]
[1730331074173,3.7479,2668.2,2667.8,1.73489975]
[1730331074471,3.7479,2668.2,2667.9,0.1876779]
[1730331074674,3.74773,2668.3,2667.9,3.9359379]
[1730331074839,3.74773,2668.3,2668.0,0.18767656]
[1730331075033,3.74773,2668.3,2667.9,1.61974283]
[1730331075550,3.74773,2668.3,2668.0,0.18767552]
[1730331075763,3.74773,2668.3,2667.9,1.61974283]
[1730331076064,3.74773,2668.3,2668.0,0.18767328]
[1730331076263,3.74773,2668.3,2667.9,1.61974283]
[1730331076464,3.74773,2668.3,2668.0,0.18767281]
[1730331076633,3.74773,2668.3,2667.9,1.61974283]
[1730331076961,3.74773,2668.3,2668.0,0.18767504]
[1730331077185,7.49533,2668.4,2667.9,5.36793283]
[1730331077335,3.74765,2668.4,2668.0,0.18767352]
[1730331077680,3.7478,2668.3,2667.9,3.74819]
[1730331077839,3.7478,2668.3,2668.0,0.18767289]
[1730331078030,3.7478,2668.3,2667.8,4.51329]
[1730331078233,3.7478,2668.3,2667.9,0.18767319]
[1730331078234,3.74786,2668.2,2667.9,0.18767319]
[1730331078427,3.74786,2668.2,2667.8,4.51329]
[1730331078645,3.74786,2668.2,2667.9,0.1876732]
[1730331078841,3.74786,2668.2,2668.0,0.1876732]
[1730331079047,3.74786,2668.2,2667.8,4.51329]
[1730331079377,3.74786,2668.2,2667.9,0.18767525]
[1730331079556,3.74786,2668.2,2668.0,0.18767525]
[1730331079737,3.62305396,2668.2,2667.8,4.51329]
[1730331080070,3.62305396,2668.2,2667.9,0.18767518]
[1730331080256,3.62305396,2668.2,2668.0,0.18767518]
[1730331080429,3.62305396,2668.2,2667.8,5.56014724]
[1730331080630,3.62305396,2668.2,2667.9,0.18767509]
[1730331080866,3.62305396,2668.2,2668.0,0.18767509]
[1730331081173,3.62305396,2668.2,2667.8,5.56014724]
[1730331081379,3.62305396,2668.2,2667.9,0.18767508]
[1730331081553,3.62305396,2668.2,2668.0,0.18767508]
[1730331081735,3.62305396,2668.2,2667.8,4.51329]
[1730331081937,3.62305396,2668.2,2667.9,0.18767393]
[1730331082262,3.62305396,2668.2,2668.0,0.18767393]
[1730331082572,3.62305396,2668.2,2667.8,4.51329]
[1730331082773,3.62305396,2668.2,2667.9,0.18767396]
[1730331082972,3.62305396,2668.2,2668.0,0.18767396]
[1730331083157,3.62305396,2668.2,2667.8,4.51329]
[1730331083354,3.62305396,2668.2,2667.9,0.18767513]
[1730331083697,3.62305396,2668.2,2668.0,0.18767513]
[1730331083880,3.62305396,2668.2,2667.8,4.51329]
[1730331084167,3.62305396,2668.2,2667.5,0.02761785]
[1730331084168,3.74832,2667.9,2667.5,3.74878]
[1730331084368,3.74832,2667.9,2667.6,0.1876905]
[1730331084565,3.74832,2667.9,2667.5,3.74878]
[1730331084758,3.74832,2667.9,2667.6,0.18769604]
[1730331084955,3.74832,2667.9,2667.7,0.18769604]
[1730331085272,3.74832,2667.9,2667.5,3.74878]
[1730331085476,3.74832,2667.9,2667.6,0.1876959]
[1730331085774,3.74832,2667.9,2667.7,0.18769575]
[1730331085937,3.7482,2668.0,2667.5,3.74878]
[1730331086138,0.8137,2667.8,2667.6,0.18769499]
[1730331086338,4.56216,2667.8,2667.4,3.74895]
[1730331086538,4.56216,2667.8,2667.5,0.18769876]
[1730331086770,4.56216,2667.8,2667.6,0.18769876]
[1730331086974,3.74854,2667.7,2667.5,0.1877003]
[1730331087265,3.74854,2667.7,2667.4,0.1877003]
[1730331087680,4.56216,2667.8,2667.4,0.1877003]
[1730331088185,4.56216,2667.8,2667.4,0.18770962]
[1730331088361,4.56216,2667.8,2667.3,3.74902]
[1730331088681,4.56216,2667.8,2667.4,4.66738628]
[1730331089879,4.56216,2667.8,2667.4,4.85509597]
[1730331090186,4.56216,2667.8,2667.4,4.66738628]
[1730331091578,4.56216,2667.8,2667.4,0.91842628]
[1730331091754,0.8137,2667.8,2667.4,4.66735628]
[1730331092251,0.8137,2667.8,2667.5,3.7488]
[1730331092462,0.8137,2667.8,2667.5,0.62461906]
[1730331092662,0.8137,2667.8,2667.5,4.37343906]
[1730331094082,0.8137,2667.8,2667.5,0.62461906]
[1730331094292,4.56213,2667.8,2667.5,0.62461906]
[1730331094451,0.8137,2667.8,2667.5,3.7488]
[1730331094655,0.8137,2667.8,2667.4,3.74885]
[1730331095186,0.8137,2667.8,2667.4,7.49774]
[1730331097403,0.8137,2667.8,2667.4,3.74885]
[1730331097685,0.8137,2667.8,2667.4,4.42225928]
[1730331099156,4.56217,2667.8,2667.4,4.42225928]
[1730331099358,0.8137,2667.8,2667.4,4.42225928]
[1730331099855,0.8266,2667.8,2667.3,4.29909]
[1730331100284,0.8104,2667.6,2667.1,0.18771268]
[1730331100589,4.55956,2667.3,2666.9,3.74956]
[1730331100979,0.8104,2667.3,2666.9,3.74956]
[1730331101358,4.55956,2667.3,2666.8,3.74973]
[1730331101557,4.55956,2667.3,2666.9,3.74961]
[1730331101988,4.55956,2667.3,2666.8,8.13541655]
[1730331102198,4.55956,2667.3,2666.8,0.63596655]
[1730331102491,4.55956,2667.3,2666.8,3.74978]
[1730331102862,4.55956,2667.3,2666.8,4.29981]
[1730331103187,4.55956,2667.3,2666.9,3.74966]
[1730331103391,3.74925,2667.2,2666.7,4.55212]
[1730331103551,3.74925,2667.2,2666.7,3.74982]
[1730331103756,3.74946,2667.1,2666.7,3.74982]
[1730331104093,4.55406,2667.1,2666.7,3.74982]
[1730331106397,3.74976,2666.9,2666.3,0.55]
[1730331106699,0.7618,2666.8,2666.4,3.75028]
[1730331107000,0.7618,2666.8,2666.5,3.75011]
[1730331109198,0.7618,2666.8,2666.2,4.53744]
[1730331109199,3.75004,2666.7,2666.2,4.53744]
[1730331109372,0.7618,2666.8,2666.3,3.75044]
[1730331109708,4.51163,2666.8,2666.3,3.75044]
[1730331110408,7.50011,2666.7,2666.2,4.53753]
[1730331110575,0.8274,2666.5,2666.0,3.75084]
[1730331110774,0.8274,2666.5,2666.1,4.754334]
[1730331111498,0.8274,2666.5,2666.2,3.75062]
[1730331112568,4.57766,2666.5,2666.1,0.453614]
[1730331112768,3.75055,2666.3,2665.8,3.75114]
[1730331113003,3.75055,2666.3,2665.9,3.75101]
[1730331113209,0.7776,2666.4,2666.0,3.75093]
[1730331113210,4.52797,2666.4,2666.0,3.75093]
[1730331113504,0.7776,2666.4,2666.0,7.5018]
[1730331113808,0.7776,2666.4,2666.0,3.75087]
[1730331114106,0.7776,2666.6,2666.0,2.15680411]
[1730331114305,0.7776,2666.6,2666.3,3.75051]
[1730331114512,0.7776,2666.6,2666.3,3.7401977]
[1730331115182,4.5277,2666.6,2666.2,3.75065]
[1730331116289,0.7776,2666.6,2666.2,3.75065]
[1730331116476,4.5277,2666.6,2666.2,3.75065]
[1730331120111,8.27789,2666.6,2666.1,3.75077]
[1730331120479,4.5277,2666.6,2666.1,3.75077]
[1730331120680,3.75023,2666.5,2666.1,3.75077]
[1730331120891,3.75023,2666.5,2665.7,3.75132]
[1730331120892,3.75059,2666.3,2665.7,3.75133]
[1730331121098,0.7893,2666.4,2665.7,3.75128]
[1730331121099,4.54005,2666.2,2665.7,3.75128]
[1730331121282,0.7893,2666.2,2665.7,3.75128]
[1730331121619,4.54002,2666.2,2665.7,3.75128]
[1730331122514,4.54002,2666.2,2665.7,7.50256]
[1730331123020,4.54002,2666.2,2665.7,3.75128]
[1730331123323,4.54002,2666.2,2665.7,7.50257]
[1730331124179,0.7893,2666.2,2665.8,3.75119]
[1730331125307,0.7893,2666.2,2665.7,3.75128]
[1730331125520,0.7893,2666.2,2665.9,3.751]
[1730331126098,0.7893,2666.2,2665.8,1.61974283]
[1730331126293,0.7682,2666.7,2666.3,3.75051]
[1730331126821,0.7682,2666.7,2666.4,3.75035]
[1730331127224,0.7682,2666.7,2666.3,3.7505]
[1730331127382,0.7682,2666.7,2666.4,3.75031]
[1730331130825,0.7682,2666.7,2666.3,3.7505]
[1730331131418,1.75696928,2666.7,2666.3,3.7505]
[1730331131623,3.0,2667.0,2666.6,3.75009]
[1730331131624,0.8267,2667.0,2666.6,3.75009]
[1730331131926,0.8267,2667.0,2666.5,3.75017]
[1730331131927,4.57631,2667.0,2666.5,3.75017]
[1730331132409,4.57631,2667.0,2666.6,3.75003]
[1730331132619,5.57085228,2667.0,2666.6,3.75003]
[1730331132804,4.57858,2666.9,2666.5,3.75017]
[1730331134124,0.8289,2666.9,2666.6,3.75006]
[1730331135004,0.8289,2666.9,2666.5,3.75022]
[1730331136033,4.57859,2666.9,2666.5,3.75022]
[1730331136916,5.09135578,2666.9,2666.5,3.75022]
[1730331151275,1.34166578,2666.9,2666.6,0.11736128]
[1730331151443,1.34166578,2666.9,2666.5,3.75012]
[1730331151644,5.09136578,2666.9,2666.6,0.11736131]
[1730331151940,5.09136578,2666.9,2666.5,3.75012]
[1730331152239,5.09136578,2666.9,2666.6,0.11736221]
[1730331152441,5.09136578,2666.9,2666.5,3.75012]
[1730331152744,5.09136578,2666.9,2666.6,0.1173619]
[1730331152904,5.09136578,2666.9,2666.5,3.75012]
[1730331153107,5.09136578,2666.9,2666.6,0.11736235]
[1730331153323,5.09136578,2666.9,2666.5,3.75012]
[1730331153520,5.09136578,2666.9,2666.6,0.1173623]
[1730331153746,5.09136578,2666.9,2666.5,3.75012]
[1730331154049,5.09136578,2666.9,2666.6,0.11736233]
[1730331154222,5.09136578,2666.9,2666.5,3.75012]
[1730331154422,5.09136578,2666.9,2666.6,0.11736235]
[1730331154649,5.09136578,2666.9,2666.5,3.75012]
[1730331154851,5.09136578,2666.9,2666.6,0.11736201]
[1730331155074,5.09136578,2666.9,2666.5,3.75012]
[1730331155272,5.09136578,2666.9,2666.6,0.11736229]
[1730331155469,5.09136578,2666.9,2666.5,3.75012]
[1730331155664,5.09136578,2666.9,2666.6,0.11736217]
[1730331155828,5.09136578,2666.9,2666.5,3.75012]
[1730331156035,5.09136578,2666.9,2666.6,0.11736218]
[1730331156279,5.09136578,2666.9,2666.5,3.75012]
[1730331156568,5.09136578,2666.9,2666.6,0.1173622]
[1730331156871,4.63394958,2666.8,2666.4,3.93811943]
[1730331157040,4.63394958,2666.8,2666.5,0.11736794]
[1730331157235,4.63394958,2666.8,2666.6,0.11736794]
[1730331157435,4.63394958,2666.8,2666.4,3.75034]
[1730331157660,4.63394958,2666.8,2666.5,0.11736642]
[1730331157960,0.88408958,2666.8,2666.4,3.75037]
[1730331158183,0.88408958,2666.8,2666.5,0.11736758]
[1730331158325,0.88408958,2666.8,2666.6,0.11736758]
[1730331158529,0.88408958,2666.8,2666.5,3.7502]
[1730331158767,0.88408958,2666.8,2666.6,0.11736301]
[1730331158975,0.88408958,2666.8,2666.5,3.7502]
[1730331159172,0.88408958,2666.8,2666.6,0.117363]
[1730331159475,0.88408958,2666.8,2666.5,3.7502]
[1730331159649,0.88408958,2666.8,2666.6,0.1173629]
[1730331159847,0.88408958,2666.8,2666.5,3.7502]
[1730331160046,0.88408958,2666.8,2666.6,0.11736292]
[1730331160266,0.45531124,2666.7,2666.5,3.7502]
[1730331160473,0.88408958,2666.8,2666.5,3.7502]
[1730331160474,0.88408958,2666.8,2666.6,0.11736293]
[1730331160679,0.88408958,2666.8,2666.5,3.7502]
[1730331160971,0.88408958,2666.8,2666.6,0.11736297]
[1730331161173,0.88408958,2666.8,2666.5,3.7502]
[1730331161352,0.88408958,2666.8,2666.6,0.11736282]
[1730331161540,0.88408958,2666.8,2666.5,3.75016]
[1730331161741,0.88408958,2666.8,2666.6,0.11736285]
[1730331161945,0.54626596,2666.7,2666.4,0.18778069]
[1730331162281,0.54626596,2666.7,2666.5,0.11736373]
[1730331162579,8.32834,2666.9,2666.6,0.11736373]
[1730331162758,8.32834,2666.9,2666.4,3.75035]
[1730331162958,8.32834,2666.9,2666.5,0.11736368]
[1730331163181,8.32834,2666.9,2666.6,0.11736368]
[1730331163377,3.74983,2666.8,2666.4,3.75035]
[1730331163582,3.74983,2666.8,2666.5,0.11736377]
[1730331163781,4.58267,2666.8,2666.6,0.11736377]
[1730331163960,4.58267,2666.8,2666.4,3.75035]
[1730331164461,4.58267,2666.8,2666.5,0.11736401]
[1730331164663,4.58267,2666.8,2666.6,0.11736401]
[1730331164866,4.58267,2666.8,2666.4,3.75035]
[1730331165171,4.58267,2666.8,2666.5,0.11736413]
[1730331165351,4.58267,2666.8,2666.4,3.75035]
[1730331165546,4.58267,2666.8,2666.5,0.11736993]
[1730331165762,4.58267,2666.8,2666.6,0.11736993]
[1730331165966,4.58267,2666.8,2666.4,3.75035]
[1730331166248,4.58267,2666.8,2666.5,0.11736365]
[1730331166574,4.58267,2666.8,2666.6,0.11736365]
[1730331166780,4.58267,2666.8,2666.4,3.75035]
[1730331166781,3.74983,2666.8,2666.4,3.75035]
[1730331166975,3.74983,2666.8,2666.5,0.11736297]
[1730331167162,3.74983,2666.8,2666.4,3.75035]
[1730331167163,3.74983,2666.8,2666.6,0.11736297]
[1730331167370,3.74983,2666.8,2666.4,3.75035]
[1730331167572,3.74983,2666.8,2666.5,0.11736472]
[1730331167763,3.74983,2666.8,2666.6,0.11736472]
[1730331167970,4.58267,2666.8,2666.4,3.75035]
[1730331168174,4.58267,2666.8,2666.5,0.11736474]
[1730331168395,4.58267,2666.8,2666.6,0.11736474]
[1730331168595,4.58267,2666.8,2666.4,3.75035]
[1730331168762,4.58267,2666.8,2666.5,0.11736297]
[1730331168964,4.58267,2666.8,2666.6,0.11736297]
[1730331169164,4.58267,2666.8,2666.4,3.75035]
[1730331169397,4.58267,2666.8,2666.5,0.30514225]
[1730331169568,4.58267,2666.8,2666.6,0.11736241]
[1730331169775,4.58267,2666.8,2666.4,3.75035]
[1730331170091,8.32834,2666.9,2666.5,0.11736441]
[1730331170397,8.32836,2666.9,2666.6,0.11736441]
[1730331170558,4.57857,2666.9,2666.7,0.11736441]
[1730331170759,0.8289,2666.9,2666.5,3.75016]
[1730331170995,4.57865,2666.9,2666.6,0.11736379]
[1730331171199,4.57865,2666.9,2666.7,0.11736379]
[1730331171406,5.411466,2666.9,2666.5,3.75016]
[1730331171761,5.411466,2666.9,2666.6,0.11736336]
[1730331171994,9.161216,2666.9,2666.7,0.11736336]
[1730331172199,9.161216,2666.9,2666.5,3.75016]
[1730331172393,3.74981,2666.8,2666.6,0.11736412]
[1730331172567,3.74981,2666.8,2666.7,0.11736412]
[1730331177199,3.74981,2666.8,2666.7,0.11736412]
[1730331177572,5.411446,2666.9,2666.7,0.11736412]
[1730331177776,5.411446,2666.9,2666.8,0.11736412]
[1730331181196,5.411446,2666.9,2666.5,3.75021]
[1730331181374,5.411446,2666.9,2666.6,0.3051391]
[1730331181714,5.411446,2666.9,2666.7,0.1173612]
[1730331181873,5.411446,2666.9,2666.8,0.1173612]
[1730331185417,5.411446,2666.9,2666.8,0.11736266]
[1730331189112,5.411446,2666.9,2666.4,3.75035]
[1730331189417,4.57863,2666.9,2666.5,0.30514151]
[1730331189599,3.74981,2666.8,2666.6,0.30514151]
[1730331189802,3.74981,2666.8,2666.7,0.11736204]
[1730331192835,3.74981,2666.8,2666.4,3.75035]
[1730331193123,3.74981,2666.8,2666.5,0.30514163]
[1730331193322,3.74981,2666.8,2666.6,0.30514163]
[1730331193499,3.74981,2666.8,2666.7,0.11736212]
[1730331194635,4.582634,2666.8,2666.7,0.11736212]
[1730331195723,0.832824,2666.8,2666.7,0.11736212]
[1730331195911,4.57859,2666.9,2666.7,0.11736212]
[1730331196113,4.57859,2666.9,2666.8,0.11736212]
[1730331196349,3.74953,2667.0,2666.8,0.11736212]
[1730331196491,3.74953,2667.0,2666.5,4.55226]
[1730331196492,7.49914,2667.0,2666.5,4.55226]
[1730331196819,7.49914,2667.0,2666.6,0.3051413]
[1730331196987,7.49914,2667.0,2666.5,4.55226]
[1730331196988,8.16279718,2667.0,2666.7,0.11736204]
[1730331197189,8.16280718,2667.0,2666.8,0.11736204]
[1730331197390,3.74967,2666.9,2666.5,4.55226]
[1730331197586,3.74967,2666.9,2666.6,0.30514121]
[1730331197828,3.74967,2666.9,2666.7,0.117362]
[1730331198128,3.74967,2666.9,2666.8,0.117362]
[1730331199326,4.57924,2666.9,2666.8,0.117362]
[1730331200088,4.57924,2666.9,2666.5,0.8021]
[1730331200335,4.57924,2666.9,2666.6,0.117362]
[1730331200515,4.57924,2666.9,2666.7,0.117362]
[1730331200823,4.57924,2666.9,2666.8,0.117362]
[1730331203799,4.57924,2666.9,2666.4,3.75034]
[1730331204007,3.74986,2666.8,2666.5,0.30514131]
[1730331204209,3.74986,2666.8,2666.6,0.30514131]
[1730331204429,3.74986,2666.8,2666.7,0.11736204]
[1730331204430,6.96971283,2666.8,2666.7,0.11736204]
[1730331204602,4.51771,2666.3,2666.0,1.53968749]
[1730331204804,4.202421,2666.2,2666.1,0.30519057]
[1730331205112,3.75065,2666.2,2666.1,0.30519057]
[1730331205927,3.75065,2666.2,2666.1,0.11738099]
[1730331209133,3.75065,2666.2,2666.1,0.11738677]
[1730331209649,3.75065,2666.2,2665.8,4.58099]
[1730331209814,4.51774,2666.3,2665.9,0.30520545]
[1730331209990,4.51774,2666.3,2666.0,0.11738671]
[1730331210189,4.51774,2666.3,2666.1,0.11738671]
[1730331210424,4.51774,2666.3,2665.9,0.18781874]
[1730331210635,4.51774,2666.3,2666.0,0.11738696]
[1730331210839,4.51774,2666.3,2666.1,0.11738696]
[1730331211010,4.51774,2666.3,2665.9,0.18781874]
[1730331211433,5.50652928,2666.3,2666.0,0.11738671]
[1730331211737,5.50652928,2666.3,2665.8,4.58099]
[1730331211922,5.50652928,2666.3,2665.9,0.11738783]
[1730331212095,5.50652928,2666.3,2666.0,0.11738783]
[1730331212293,5.50652928,2666.3,2665.8,4.76881053]
[1730331212492,5.50652928,2666.3,2665.9,0.11738764]
[1730331212715,5.50652928,2666.3,2666.0,0.11738764]
[1730331212907,5.50652928,2666.3,2665.9,7.50209]
[1730331213135,5.50655928,2666.3,2666.0,0.11738642]
[1730331213334,1.75598928,2666.3,2665.9,7.50202]
[1730331213535,3.75041,2666.4,2666.0,0.11738729]
[1730331213713,3.75041,2666.4,2665.9,3.751]
[1730331213918,4.54622,2666.5,2666.0,0.11738599]
[1730331214112,3.83291,2666.8,2666.5,0.82]
[1730331214113,3.0,2666.8,2666.5,0.82]
[1730331214329,6.74982,2666.8,2666.5,0.82]
[1730331214636,3.0,2666.8,2666.5,0.82]
[1730331214931,3.74975,2666.9,2666.5,0.82]
[1730331216346,3.74983,2666.8,2666.5,0.82]
[1730331219546,4.86628928,2666.9,2666.5,0.82]
[1730331219936,8.61604928,2666.9,2666.5,0.82]
[1730331220129,3.74983,2666.8,2666.5,0.82]
[1730331220531,4.86622928,2666.9,2666.5,0.82]
[1730331221141,3.74984,2666.8,2666.5,0.82]
[1730331224532,3.74969,2666.9,2666.5,4.57022]
[1730331225122,3.74967,2666.9,2666.5,0.82]
[1730331225528,3.74967,2666.9,2666.5,4.57016]
[1730331225724,3.74982,2666.8,2666.5,0.82]
[1730331226958,5.36921283,2667.1,2666.5,4.57017]
[1730331227254,3.74967,2666.9,2666.5,4.57017]
[1730331228157,7.49942,2666.9,2666.5,4.57017]
[1730331228341,3.7499,2666.8,2666.5,0.82]
[1730331228654,4.5372,2666.8,2666.4,3.75036]
[1730331232956,3.75001,2666.7,2666.3,0.7715]
[1730331233156,3.75001,2666.7,2666.4,0.11736774]
[1730331233324,3.75001,2666.7,2666.3,0.7715]
[1730331233641,3.75001,2666.7,2666.4,0.11736697]
[1730331233850,3.75001,2666.7,2666.3,0.7715]
[1730331234057,3.75001,2666.7,2666.4,0.11736748]
[1730331234267,3.75001,2666.7,2666.3,0.7715]
[1730331234466,3.75001,2666.7,2666.4,0.11736667]
[1730331234665,3.75001,2666.7,2666.3,0.7715]
[1730331234866,3.75001,2666.7,2666.4,0.11736729]
[1730331235185,3.75001,2666.7,2666.3,4.52197]
[1730331235342,3.75001,2666.7,2666.4,0.11736671]
[1730331235639,3.75001,2666.7,2666.3,4.52197]
[1730331235840,4.5372,2666.8,2666.4,3.86769671]
[1730331236037,8.28712,2666.8,2666.3,4.52197]
[1730331236241,8.28712,2666.8,2666.4,0.11736609]
[1730331236510,3.7499,2666.8,2666.3,4.52196]
[1730331236864,3.7499,2666.8,2666.4,0.11736608]
[1730331237065,3.74988,2666.8,2666.4,3.75029]
[1730331237265,3.74974,2666.9,2666.4,7.50058]
[1730331237800,3.74974,2666.9,2666.6,0.78]
[1730331241380,7.49953,2666.9,2666.6,0.78]
[1730331241822,3.74974,2666.9,2666.6,0.78]
[1730331242434,7.49952,2666.9,2666.6,0.78]
[1730331242621,3.74974,2666.9,2666.6,0.78]
[1730331243240,3.74981,2666.8,2666.6,0.78]
[1730331244431,3.74995,2666.7,2666.4,0.7552]
[1730331244632,3.74995,2666.7,2666.5,0.11736621]
[1730331244843,3.74995,2666.7,2666.4,0.7552]
[1730331245159,3.74995,2666.7,2666.5,0.11736589]
[1730331245363,3.74995,2666.7,2666.4,0.7552]
[1730331245521,3.74995,2666.7,2666.5,0.11736591]
[1730331245723,3.74983,2666.8,2666.4,0.7552]
[1730331245949,3.75002,2666.7,2666.4,0.7552]
[1730331246946,3.75002,2666.7,2666.5,0.11736667]
[1730331247139,3.75002,2666.7,2666.4,0.7552]
[1730331247338,3.75002,2666.7,2666.5,0.1173668]
[1730331247562,3.75002,2666.7,2666.4,0.7552]
[1730331247764,3.75002,2666.7,2666.5,0.1173668]
[1730331247969,3.75002,2666.7,2666.4,0.7552]
[1730331248132,3.75002,2666.7,2666.5,0.11736697]
[1730331248461,3.75002,2666.7,2666.4,0.7552]
[1730331248671,3.75002,2666.7,2666.5,0.11736643]
[1730331248847,3.75002,2666.7,2666.4,0.7552]
[1730331249160,3.75002,2666.7,2666.5,0.11736701]
[1730331249367,3.75002,2666.7,2666.4,0.7552]
[1730331249536,3.75002,2666.7,2666.5,0.11736756]
[1730331249537,3.75009,2666.6,2666.5,0.11736756]
[1730331249741,3.75023,2666.5,2666.2,0.18778667]
[1730331249935,3.75023,2666.5,2666.3,0.11737115]
[1730331250135,3.75023,2666.5,2666.4,0.11737115]
[1730331250730,3.75023,2666.5,2666.1,0.7904]
[1730331250929,3.75023,2666.5,2666.2,0.11737425]
[1730331251169,3.7504,2666.4,2666.3,0.11737425]
[1730331252432,0.7533,2666.6,2666.3,0.11737425]
[1730331252632,3.75025,2666.5,2666.1,0.7904]
[1730331252866,3.75025,2666.5,2666.2,0.11737427]
[1730331253074,0.8121,2666.3,2665.9,0.1878144]
[1730331253249,3.75079,2666.1,2666.0,0.1173875]
[1730331254142,3.75079,2666.1,2665.6,6.12962283]
[1730331254346,3.75079,2666.1,2665.7,0.18782539]
[1730331254533,3.75079,2666.1,2665.8,0.30521626]
[1730331254735,3.75079,2666.1,2665.9,0.11739088]
[1730331255044,3.75079,2666.1,2665.6,6.12967283]
[1730331255246,3.75094,2666.0,2665.7,0.30521671]
[1730331255450,3.75094,2666.0,2665.8,0.11739104]
[1730331255667,3.75094,2666.0,2665.9,0.11739104]
[1730331257978,3.75094,2666.0,2665.6,4.50999]
[1730331258178,3.75094,2666.0,2665.9,0.11739104]
[1730331259483,0.8137,2666.0,2665.6,0.7585]
[1730331259644,3.75108,2665.9,2665.7,0.11739317]
[1730331259848,3.75108,2665.9,2665.8,0.11739317]
[1730331261541,3.75108,2665.9,2665.8,0.11739399]
[1730331262783,3.75099,2666.0,2665.8,0.11739399]
[1730331263085,3.75099,2666.0,2665.6,4.50993]
[1730331263288,3.75099,2666.0,2665.7,0.11739367]
[1730331263589,3.75099,2666.0,2665.8,0.11739367]
[1730331263760,3.75099,2666.0,2665.6,4.50993]
[1730331263963,3.75099,2666.0,2665.7,0.11739321]
[1730331264291,3.75099,2666.0,2665.6,4.50993]
[1730331264292,3.75099,2666.0,2665.8,0.11739321]
[1730331264475,3.75099,2666.0,2665.6,4.50993]
[1730331264678,3.75099,2666.0,2665.7,0.11739367]
[1730331264854,3.75099,2666.0,2665.6,4.50993]
[1730331265052,3.75099,2666.0,2665.7,0.11739367]
[1730331265249,3.75099,2666.0,2665.6,4.50993]
[1730331265450,3.75099,2666.0,2665.7,0.11739367]
[1730331265650,3.75099,2666.0,2665.6,4.50993]
[1730331265890,3.75099,2666.0,2665.7,0.11739365]
[1730331266057,3.75082,2666.1,2665.6,4.50993]
[1730331266380,1.572176,2666.2,2665.8,3.75119]
[1730331266381,0.8159,2666.2,2665.8,3.75119]
[1730331266583,4.56639,2666.4,2665.9,0.7558]
[1730331266788,8.31689,2666.4,2665.9,4.50686]
[1730331266975,9.54731263,2666.4,2665.9,4.50686]
[1730331267968,8.73141263,2666.4,2665.9,4.50686]
[1730331268169,3.75053,2666.3,2665.9,4.50686]
[1730331270107,3.75053,2666.3,2665.9,0.7558]
[1730331270901,8.73140263,2666.4,2665.9,4.50681]
[1730331271200,3.75054,2666.3,2665.9,4.50681]
[1730331272099,3.75054,2666.3,2665.9,0.7558]
[1730331272768,3.75067,2666.2,2665.9,0.7558]
[1730331272967,3.75073,2666.2,2665.7,0.89249154]
[1730331273198,3.7509,2666.1,2665.7,4.52637]
[1730331274102,3.75067,2666.2,2665.8,3.75119]
[1730331274405,3.75067,2666.2,2665.9,0.7751]
[1730331274567,3.7504,2666.4,2665.9,0.7751]
[1730331274905,3.75052,2666.3,2665.9,0.7751]
[1730331275204,4.59934563,2666.3,2665.9,0.7751]
[1730331275923,3.75068,2666.2,2665.9,0.7751]
[1730331278315,4.59936563,2666.3,2665.9,0.7751]
[1730331278506,3.75067,2666.2,2665.9,0.7751]
[1730331282509,7.50142,2666.2,2665.9,0.7751]
[1730331284410,8.251562,2666.2,2665.9,0.7751]
[1730331285510,4.500812,2666.2,2665.9,0.7751]
[1730331285713,7.5014,2666.2,2665.9,0.7751]
[1730331286703,3.75067,2666.2,2665.9,0.7751]
[1730331288231,7.50142,2666.2,2665.9,0.7751]
[1730331288727,3.75067,2666.2,2665.9,0.7751]
[1730331289227,7.50144,2666.2,2665.9,0.7751]
[1730331289401,3.75067,2666.2,2665.9,0.7751]
[1730331289903,7.5014,2666.2,2665.9,0.7751]
[1730331291417,8.25154,2666.2,2665.9,0.7751]
[1730331293126,4.50081,2666.2,2665.9,0.7751]
[1730331293438,7.50143,2666.2,2665.9,0.7751]
[1730331293724,3.75067,2666.2,2665.9,0.7751]
[1730331293936,7.5014,2666.2,2665.9,0.7751]
[1730331294294,3.75081,2666.1,2665.9,0.7751]
[1730331294518,3.75081,2666.1,2666.0,0.1173959]
[1730331294724,3.75081,2666.1,2666.0,0.11739551]
[1730331295331,3.75081,2666.1,2666.0,0.11739594]
[1730331298040,3.75067,2666.2,2666.0,0.11739594]
[1730331298238,3.75067,2666.2,2666.1,0.11739594]
[1730331298239,7.5014,2666.2,2666.1,0.11739594]
[1730331298532,7.5014,2666.2,2665.7,8.29168]
[1730331298533,4.52532,2666.3,2665.7,4.54036]
[1730331298731,3.75079,2666.1,2665.8,0.30522832]
[1730331298938,3.75079,2666.1,2665.9,0.30522832]
[1730331299241,3.75079,2666.1,2666.0,0.11739593]
[1730331300739,3.75067,2666.2,2666.0,0.11739593]
[1730331300896,3.75067,2666.2,2666.1,0.11739593]
[1730331301250,3.75054,2666.3,2666.1,0.11739476]
[1730331301578,3.75054,2666.3,2666.2,0.11739476]